bitfinex/quotes_SOLUSD_20250607
["timestamp","ask_amount","ask_price","bid_price","bid_amount"]
[1749288714446,10.61802121,152.45,152.41,10.61802121]
[1749288715138,17.17758228,152.45,152.41,10.61802121]
[1749288715344,10.61802121,152.44,152.4,50.25802121]
[1749288715850,17.1781018,152.44,152.4,50.25802121]
[1749288716460,10.61802121,152.42,152.4,39.64]
[1749288717166,6.56008059,152.44,152.4,39.64]
[1749288717345,10.61802121,152.43,152.4,39.64]
[1749288720949,17.17842291,152.43,152.4,39.64]
[1749288721357,10.61802121,152.43,152.4,39.64]
[1749288721559,17.17810328,152.44,152.4,39.64]
[1749288722280,10.61802121,152.44,152.4,56.81965653]
[1749288722579,17.17766713,152.45,152.4,56.81965653]
[1749288722780,10.61802121,152.44,152.4,56.81965653]
[1749288723149,17.17766713,152.45,152.41,10.61802121]
[1749288724670,6.55964592,152.45,152.41,10.61802121]
[1749288724876,10.61802121,152.44,152.4,50.25802121]
[1749288727066,10.61802121,152.44,152.4,56.81947664]
[1749288727871,17.17800449,152.44,152.4,50.25802121]
[1749288728971,10.61802121,152.44,152.4,56.81968013]
[1749288729758,10.61802121,152.44,152.4,50.25802121]
[1749288730176,17.17806804,152.44,152.4,50.25802121]
[1749288730369,10.61802121,152.45,152.41,10.61802121]
[1749288730769,17.17763599,152.45,152.41,10.61802121]
[1749288731166,10.61802121,152.44,152.4,49.74]
[1749288731475,10.61802121,152.42,152.4,10.1]
[1749288731676,10.61802121,152.41,152.4,10.1]
[1749288732780,6.56167979,152.4,152.37,39.64]
[1749288732985,17.179701,152.4,152.37,39.64]
[1749288733562,10.61802121,152.39,152.37,39.64]
[1749288733765,10.61802121,152.38,152.36,10.1]
[1749288733959,10.61802121,152.37,152.32,47.92]
[1749288734162,10.61802121,152.35,152.33,39.66]
[1749288734859,17.18197025,152.35,152.33,39.66]
[1749288737191,17.18197025,152.35,152.32,87.58]
[1749288739190,10.61802121,152.34,152.32,47.92]
[1749288739394,10.61802121,152.33,152.32,49.74]
[1749288739593,10.61802121,152.33,152.28,27.28480964]
[1749288739773,10.61802121,152.33,152.29,39.68]
[1749288740680,10.61802121,152.32,152.29,39.68]
[1749288741175,10.61802121,152.32,152.3,39.66]
[1749288741375,10.61802121,152.34,152.3,50.27802121]
[1749288742774,10.61802121,152.34,152.3,56.84400686]
[1749288743370,6.56340246,152.36,152.31,10.61802121]
[1749288743579,10.61802121,152.36,152.31,10.61802121]
[1749288744790,17.181523,152.36,152.31,17.18348508]
[1749288745281,10.61802121,152.35,152.31,17.18348508]
[1749288749475,10.61802121,152.36,152.31,17.18348508]
[1749288751294,10.61802121,152.36,152.32,10.61802121]
[1749288751688,10.61802121,152.35,152.31,6.56546387]
[1749288751891,10.61802121,152.35,152.31,17.18348508]
[1749288752783,10.61802121,152.35,152.31,10.61802121]
[1749288753177,10.61802121,152.35,152.3,39.66]
[1749288753178,10.61802121,152.34,152.3,39.66]
[1749288753381,10.61802121,152.33,152.31,39.68]
[1749288753599,10.61802121,152.34,152.31,39.68]
[1749288756509,17.18229949,152.34,152.31,39.68]
[1749288757727,10.61802121,152.34,152.31,39.68]
[1749288768222,17.1823178,152.34,152.31,39.68]
[1749288768812,10.61802121,152.34,152.31,39.68]
[1749288775011,10.61802121,152.32,152.3,10.12]
[1749288775209,10.61802121,152.31,152.3,49.78]
[1749288775408,10.61802121,152.32,152.3,49.78]
[1749288775604,10.61802121,152.31,152.27,26.0]
[1749288775829,10.61802121,152.31,152.28,39.68]
[1749288776212,10.61802121,152.32,152.28,39.68]
[1749288776922,17.18324007,152.32,152.28,39.68]
[1749288777542,10.61802121,152.31,152.28,39.72]
[1749288777713,17.18324007,152.32,152.28,39.72]
[1749288778215,10.61802121,152.29,152.27,10.12]
[1749288778630,10.61802121,152.29,152.23,6.56875006]
[1749288778819,10.61802121,152.27,152.23,39.72]
[1749288779021,10.61802121,152.26,152.23,39.72]
[1749288779512,10.61802121,152.25,152.22,37.82]
[1749288779742,1.517,152.27,152.22,37.82]
[1749288779743,10.61802121,152.26,152.22,48.43802121]
[1749288779907,12.13502121,152.27,152.22,55.00713992]
[1749288780106,12.13502121,152.27,152.22,44.38911871]
[1749288780107,10.61802121,152.26,152.22,44.38911871]
[1749288780332,10.61802121,152.26,152.22,84.12911871]
[1749288780526,8.08431327,152.27,152.22,84.12911871]
[1749288780789,10.61802121,152.26,152.22,84.12911871]
[1749288780907,10.61802121,152.25,152.22,37.82]
[1749288781108,10.61802121,152.24,152.21,16.70981478]
[1749288781739,10.61802121,152.22,152.21,10.14]
[1749288783313,10.61802121,152.22,152.17,6.57147218]
[1749288783519,10.61802121,152.21,152.17,17.18949339]
[1749288783836,10.61802121,152.22,152.17,17.18949339]
[1749288784011,10.61802121,152.21,152.17,6.57147218]
[1749288784219,10.61802121,152.2,152.17,6.57147218]
[1749288785341,10.61802121,152.2,152.16,67.10988803]
[1749288785546,1.517,152.27,152.19,36.61802121]
[1749288785845,10.61802121,152.25,152.21,10.61802121]
[1749288787258,10.61802121,152.25,152.21,17.18783762]
[1749288788447,12.13502121,152.27,152.23,10.61802121]
[1749288789656,12.13502121,152.27,152.23,17.18702545]
[1749288789837,12.13502121,152.27,152.23,10.61802121]
[1749288790243,10.61802121,152.26,152.22,17.18730253]
[1749288790442,8.08440497,152.27,152.21,10.14]
[1749288790443,10.61802121,152.25,152.21,27.32773727]
[1749288791348,10.61802121,152.25,152.21,20.75802121]
[1749288791844,10.61802121,152.24,152.21,10.14]
[1749288792728,10.61802121,152.23,152.21,10.14]
[1749288792968,6.56786926,152.26,152.21,10.14]
[1749288793130,10.61802121,152.25,152.21,20.75802121]
[1749288793333,10.61802121,152.24,152.21,10.14]
[1749288794456,10.61802121,152.23,152.21,10.14]
[1749288794760,17.18676571,152.24,152.19,10.61802121]
[1749288794964,6.56810595,152.26,152.22,10.61802121]
[1749288795141,17.18612716,152.26,152.22,10.61802121]
[1749288796337,17.18612716,152.26,152.21,17.18788731]
[1749288796555,10.61802121,152.25,152.21,17.18788731]
[1749288797163,10.61802121,152.26,152.21,17.18788731]
[1749288797367,10.61802121,152.26,152.22,10.61802121]
[1749288798039,10.61802121,152.26,152.21,6.5698661]
[1749288798040,10.61802121,152.26,152.21,17.18788731]
[1749288799041,10.61802121,152.25,152.21,17.18788731]
[1749288799264,10.61802121,152.25,152.21,6.5698661]
[1749288799544,10.61802121,152.25,152.21,17.18788731]
[1749288800462,10.61802121,152.26,152.21,17.18788731]
[1749288800667,10.61802121,152.26,152.22,10.61802121]
[1749288801854,12.13502121,152.27,152.23,10.61802121]
[1749288802254,12.13502121,152.27,152.23,17.18697563]
[1749288803349,10.61802121,152.26,152.23,6.56895442]
[1749288803858,12.13502121,152.27,152.23,6.56895442]
[1749288804167,12.13502121,152.27,152.22,10.16]
[1749288804349,10.61802121,152.26,152.22,27.34738815]
[1749288805180,8.08445568,152.27,152.22,10.16]
[1749288805181,10.61802121,152.25,152.22,10.16]
[1749288805737,10.61802121,152.25,152.21,17.18781338]
[1749288806243,10.61802121,152.25,152.2,10.61802121]
[1749288807071,10.61802121,152.24,152.19,76.49802121]
[1749288807456,10.61802121,152.24,152.19,83.06873931]
[1749288807656,17.18671408,152.24,152.19,83.06873931]
[1749288807868,10.61802121,152.23,152.19,76.49802121]
[1749288808172,17.18671408,152.24,152.19,83.06867165]
[1749288808571,10.61802121,152.22,152.19,26.0]
[1749288808770,10.61802121,152.22,152.18,10.61802121]
[1749288809448,1.5193,152.21,152.17,16.73134773]
[1749288809656,12.13732121,152.21,152.17,20.77802121]
[1749288809869,1.5193,152.21,152.17,27.34952691]
[1749288810076,1.5193,152.21,152.17,20.77802121]
[1749288810374,1.5193,152.21,152.16,32.57176571]
[1749288810553,12.13732121,152.21,152.17,10.61802121]
[1749288810950,12.13732121,152.21,152.16,32.57176571]
[1749288811265,10.61802121,152.2,152.15,27.41036645]
[1749288811462,17.18845505,152.2,152.15,27.41036645]
[1749288811666,8.08701312,152.26,152.18,26.0]
[1749288811866,10.61802121,152.23,152.19,10.61802121]
[1749288812276,10.61802121,152.23,152.18,36.61802121]
[1749288812676,10.61802121,152.2,152.16,10.61802121]
[1749288812980,10.61802121,152.21,152.16,10.61802121]
[1749288813169,10.61802121,152.22,152.17,10.61802121]
[1749288813682,10.61802121,152.21,152.17,10.61802121]
[1749288814394,10.61802121,152.21,152.15,42.79234524]
[1749288814695,10.61802121,152.21,152.17,17.18928612]
[1749288816281,10.61802121,152.22,152.17,6.57126491]
[1749288816462,10.61802121,152.21,152.17,17.18928612]
[1749288818361,22.83071315,152.26,152.18,10.61802121]
[1749288818362,10.61802121,152.22,152.18,10.61802121]
[1749288818569,10.61802121,152.25,152.2,10.61802121]
[1749288818783,23.23690952,152.28,152.23,10.61802121]
[1749288819101,17.18445882,152.29,152.24,10.61802121]
[1749288819253,44.75615747,152.3,152.25,10.61802121]
[1749288819459,10.61802121,152.28,152.23,10.61802121]
[1749288819658,10.61802121,152.27,152.22,10.61802121]
[1749288819875,10.61802121,152.27,152.2,10.24]
[1749288820085,10.61802121,152.26,152.22,10.61802121]
[1749288820988,10.61802121,152.26,152.21,17.18769277]
[1749288821383,10.61802121,152.25,152.2,46.83802121]
[1749288822064,6.56750464,152.27,152.2,46.83802121]
[1749288822065,17.18693544,152.24,152.2,10.22]
[1749288823370,10.61802121,152.23,152.2,10.22]
[1749288825269,17.18703813,152.23,152.2,10.22]
[1749288825685,10.61802121,152.22,152.2,10.22]
[1749288828290,4.89830776,152.26,152.2,27.40818757]
[1749288828501,10.61802121,152.25,152.21,10.61802121]
[1749288828878,10.61802121,152.26,152.21,10.61802121]
[1749288829593,10.61802121,152.25,152.21,17.18759071]
[1749288829997,10.61802121,152.26,152.21,17.18759071]
[1749288830197,10.61802121,152.26,152.21,6.5695695]
[1749288830501,10.61802121,152.27,152.22,10.61802121]
[1749288832300,10.61802121,152.27,152.23,6.56900742]
[1749288834506,17.18533176,152.27,152.22,17.18733016]
[1749288834898,10.61802121,152.27,152.22,17.18733016]
[1749288836498,10.61802121,152.27,152.23,10.61802121]
[1749288837581,10.61802121,152.27,152.23,17.18691358]
[1749288839606,17.18530878,152.27,152.22,17.18728478]
[1749288840106,10.61802121,152.26,152.21,10.61802121]
[1749288840283,10.61802121,152.24,152.2,10.22]
[1749288840609,10.61802121,152.24,152.2,20.83802121]
[1749288840913,10.61802121,152.24,152.2,10.22]
[1749288841101,10.61802121,152.23,152.2,10.22]
[1749288841492,10.61802121,152.21,152.17,17.18957641]
[1749288841700,10.61802121,152.21,152.17,6.5715552]
[1749288842402,10.61802121,152.2,152.16,17.1898872]
[1749288842710,10.61802121,152.19,152.16,6.57186599]
[1749288842913,10.61802121,152.18,152.12,37.84]
[1749288843086,10.61802121,152.18,152.13,10.26]
[1749288843087,10.61802121,152.17,152.13,10.26]
[1749288843290,10.61802121,152.16,152.13,10.26]
[1749288843498,10.61802121,152.17,152.13,10.26]
[1749288844098,10.61802121,152.15,152.12,37.84]
[1749288844288,10.61802121,152.15,152.12,44.41369844]
[1749288845211,10.61802121,152.14,152.1,27.45264316]
[1749288845715,10.61802121,152.14,152.1,16.83462195]
[1749288846609,10.61802121,152.14,152.1,27.45264316]
[1749288846911,1.5742,152.16,152.1,27.45264316]
[1749288846912,10.61802121,152.15,152.1,27.45264316]
[1749288847915,10.61802121,152.15,152.11,10.61802121]
[1749288848217,12.19222121,152.16,152.11,10.61802121]
[1749288848911,6.3443,152.2,152.13,36.61802121]
[1749288849090,10.61802121,152.19,152.14,10.61802121]
[1749288849721,10.61802121,152.17,152.13,10.61802121]
[1749288850020,12.91465608,152.2,152.13,10.61802121]
[1749288850021,10.61802121,152.19,152.15,10.61802121]
[1749288850186,8.07980574,152.21,152.13,26.0]
[1749288850187,12.12792121,152.21,152.17,10.61802121]
[1749288850708,12.12792121,152.21,152.16,10.61802121]
[1749288850709,18.69781316,152.21,152.16,10.61802121]
[1749288851218,18.69781316,152.21,152.16,17.18991513]
[1749288856521,12.12792121,152.21,152.16,17.18991513]
[1749288856825,18.69781329,152.21,152.16,17.18991513]
[1749288861132,18.69781329,152.21,152.16,10.61802121]
[1749288861535,10.61802121,152.2,152.16,10.61802121]
[1749288862231,17.18843531,152.2,152.16,10.61802121]
[1749288865228,10.61802121,152.2,152.16,17.18990839]
[1749288865414,18.69796927,152.21,152.16,17.18990839]
[1749288869823,18.69796927,152.21,152.16,10.61802121]
[1749288870431,10.61802121,152.2,152.16,10.61802121]
[1749288870637,10.61802121,152.2,152.15,27.47029839]
[1749288872112,10.61802121,152.2,152.16,10.61802121]
[1749288872319,18.69780768,152.21,152.16,10.61802121]
[1749288872713,10.61802121,152.2,152.15,27.47029839]
[1749288873232,10.61802121,152.19,152.15,27.47029839]
[1749288874639,17.18832423,152.2,152.15,27.47029839]
[1749288874837,10.61802121,152.2,152.15,27.47029839]
[1749288877945,18.69793068,152.21,152.16,10.61802121]
[1749288881216,18.69793068,152.21,152.16,17.18991469]
[1749288884247,23.59553176,152.21,152.16,17.18991469]
[1749288884430,18.69793068,152.21,152.16,17.18991469]
[1749288884743,17.18834557,152.2,152.16,17.18991469]
[1749288884927,12.12792121,152.21,152.17,10.61802121]
[1749288886251,12.12792121,152.21,152.16,17.18991469]
[1749288889450,17.02552229,152.21,152.16,17.18991469]
[1749288893387,8.32239297,152.21,152.16,13.38438645]
[1749288894941,8.32239297,152.21,152.17,6.81249297]
[1749288895137,6.81249297,152.2,152.16,13.38438645]
[1749288895856,8.32239297,152.21,152.16,13.38438645]
[1749288896661,4.92592284,152.2,152.16,13.38438645]
[1749288896953,8.32239297,152.21,152.16,6.57189348]
[1749288897134,4.92601547,152.2,152.16,6.57189348]
[1749288897335,8.32239297,152.21,152.16,6.57189348]
[1749288897541,4.92610954,152.2,152.16,6.57189348]
[1749288898568,8.32239297,152.21,152.16,6.57189348]
[1749288898951,4.92603473,152.2,152.16,6.57189348]
[1749288899636,8.32239297,152.21,152.16,6.57189348]
[1749288899837,4.92614247,152.2,152.16,6.57189348]
[1749288900157,1.5099,152.21,152.16,13.38438645]
[1749288900354,4.92614247,152.2,152.16,23.62438645]
[1749288900849,1.5099,152.21,152.16,23.62438645]
[1749288901054,8.0799528,152.21,152.16,23.62438645]
[1749288901259,6.81249297,152.18,152.11,10.24]
[1749288901558,8.0799528,152.21,152.11,56.91249297]
[1749288901559,6.81249297,152.16,152.11,56.91249297]
[1749288901755,4.92608357,152.17,152.12,6.81249297]
[1749288901756,6.81249297,152.17,152.12,6.81249297]
[1749288901950,6.81249297,152.16,152.12,6.81249297]
[1749288902935,13.38454944,152.16,152.12,6.81249297]
[1749288903256,17.22366451,152.16,152.12,10.65160804]
[1749288905668,10.65160804,152.16,152.12,10.65160804]
[1749288907553,17.22374877,152.16,152.12,10.65160804]
[1749288910075,10.65160804,152.16,152.12,10.65160804]
[1749288911077,17.22387861,152.16,152.12,10.65160804]
[1749288923191,6.81659876,152.16,152.12,6.81659876]
[1749288924188,13.38872831,152.16,152.12,6.81659876]
[1749288924990,13.38872831,152.16,152.11,10.24]
[1749288924991,8.33609876,152.15,152.11,10.24]
[1749288925162,6.81659876,152.14,152.11,10.24]
[1749288925489,6.81659876,152.14,152.1,32.81659876]
[1749288925983,6.81659876,152.13,152.08,6.81659876]
[1749288926165,6.81659876,152.13,152.08,46.63659876]
[1749288926479,6.57375755,152.12,152.07,10.2]
[1749288926682,6.81659876,152.11,152.07,17.01659876]
[1749288927395,8.33609876,152.1,152.06,6.81659876]
[1749288928058,6.81659876,152.09,152.04,26.0]
[1749288928280,6.81659876,152.08,152.04,6.81659876]
[1749288928677,6.81659876,152.08,152.03,6.57764914]
[1749288928873,6.81659876,152.08,152.03,13.3942479]
[1749288929064,6.81659876,152.07,152.03,13.3942479]
[1749288929258,6.81659876,152.07,152.02,61.4746511]
[1749288929476,6.81659876,152.07,152.03,6.81659876]
[1749288930290,6.81659876,152.07,152.02,16.77805234]
[1749288930490,6.81659876,152.07,152.02,23.5946511]
[1749288930681,6.81659876,152.07,152.03,6.81659876]
[1749288931073,6.81659876,152.07,152.02,23.5946511]
[1749288931584,6.81659876,152.07,152.03,6.81659876]
[1749288931978,6.81659876,152.07,152.02,16.77805234]
[1749288932178,6.81659876,152.07,152.03,6.81659876]
[1749288932773,6.81659876,152.07,152.02,16.77805234]
[1749288932972,6.81659876,152.07,152.02,23.5946511]
[1749288933189,6.81659876,152.06,152.02,16.77805234]
[1749288933390,6.81659876,152.06,152.02,23.5946511]
[1749288933580,6.81659876,152.07,152.02,23.5946511]
[1749288933775,6.81659876,152.06,152.02,6.57805234]
[1749288934875,6.81659876,152.05,152.01,13.39499119]
[1749288935092,6.81659876,152.06,152.01,13.39499119]
[1749288935576,6.81659876,152.04,151.99,6.57938022]
[1749288935912,12.74516845,152.07,152.02,6.81659876]
[1749288936077,19.56176721,152.07,152.03,6.81659876]
[1749288936883,19.56176721,152.07,152.02,6.81659876]
[1749288937186,6.81659876,152.04,152.0,6.81659876]
[1749288937376,6.81659876,152.04,151.99,6.579268]
[1749288937377,8.39399876,152.03,151.99,6.579268]
[1749288937699,8.39399876,152.03,151.99,13.39586676]
[1749288938006,8.39399876,152.03,151.99,6.579268]
[1749288938192,1.5774,152.03,151.98,6.57971832]
[1749288938502,1.5774,152.03,152.0,6.81659876]
[1749288938806,8.39399876,152.03,151.98,13.39631708]
[1749288939481,6.81659876,152.02,151.98,6.57971832]
[1749288940086,6.81659876,152.02,151.98,13.39631708]
[1749288940287,8.39399876,152.03,151.98,13.39631708]
[1749288941484,1.5774,152.03,151.98,13.39631708]
[1749288941685,6.81659876,152.02,151.98,13.39631708]
[1749288941992,8.39399876,152.03,151.98,6.81659876]
[1749288942174,1.5774,152.03,151.97,6.5802461]
[1749288942378,6.81659876,152.02,151.98,6.81659876]
[1749288943992,6.81659876,152.02,151.98,13.39623743]
[1749288944801,1.5774,152.03,151.99,6.81659876]
[1749288944983,13.39367013,152.05,152.0,6.81659876]
[1749288945293,6.81659876,152.05,152.0,6.81659876]
[1749288945941,13.39339636,152.05,151.98,6.57963867]
[1749288946221,13.39339636,152.05,152.0,13.39551497]
[1749288948708,13.39339636,152.05,151.99,6.81659876]
[1749288948709,6.81659876,152.03,151.99,6.81659876]
[1749288949809,6.5767976,152.05,151.98,6.81659876]
[1749288949810,6.81659876,152.02,151.98,6.81659876]
[1749288951015,6.81659876,152.02,151.97,13.39684486]
[1749288951016,6.81659876,152.01,151.97,13.39684486]
[1749288951316,6.81659876,152.01,151.97,6.5802461]
[1749288951513,6.81659876,151.99,151.94,6.81659876]
[1749288951692,6.81659876,151.99,151.93,16.78197854]
[1749288951887,6.81659876,151.99,151.94,6.81659876]
[1749288952507,13.39601925,151.99,151.94,13.39803463]
[1749288952695,6.81659876,152.0,151.96,6.81659876]
[1749288953090,6.81659876,152.0,151.95,6.81659876]
[1749288953296,10.67404816,152.0,151.95,10.67404816]
[1749288954106,10.67404816,152.0,151.95,17.25474134]
[1749288954612,10.67404816,152.0,151.96,10.67404816]
[1749288955118,6.57867695,152.01,151.96,10.67404816]
[1749288955119,10.67404816,152.01,151.96,10.67404816]
[1749288956216,6.5028,152.06,152.0,10.67404816]
[1749288956399,6.5028,152.06,151.97,6.5802461]
[1749288956400,6.57706745,152.05,152.02,10.67404816]
[1749288957097,6.57706745,152.05,151.98,10.2]
[1749288957098,6.57706745,152.05,152.01,10.67404816]
[1749288957712,17.25046458,152.06,152.01,17.25247905]
[1749288958000,17.25046458,152.06,152.01,10.67404816]
[1749288962019,10.67404816,152.05,152.01,10.67404816]
[1749288963038,1.6639,152.07,152.01,6.57838564]
[1749288963208,1.6639,152.07,152.04,10.67404816]
[1749288963915,18.91397039,152.07,152.03,10.67404816]
[1749288964907,10.67404816,152.04,151.98,46.87404816]
[1749288965116,10.67404816,152.01,151.98,10.2]
[1749288965313,10.67404816,152.0,151.96,17.25455391]
[1749288965919,17.25274156,152.01,151.96,17.25455391]
[1749288966114,10.67404816,152.0,151.95,17.25504939]
[1749288967498,10.67404816,152.0,151.96,10.67404816]
[1749288968303,10.67404816,152.01,151.97,6.5802461]
[1749288969899,6.57764914,152.03,151.97,17.25429426]
[1749288970105,10.67404816,152.01,151.97,17.25429426]
[1749288970308,10.67404816,152.01,151.97,6.5802461]
[1749288971109,10.67404816,152.02,151.98,10.67404816]
[1749288971325,10.67404816,152.03,151.99,10.67404816]
[1749288972425,17.25174342,152.03,151.99,10.67404816]
[1749288972930,10.67404816,152.03,151.99,17.25327517]
[1749288973320,10.67404816,152.03,151.98,10.67404816]
[1749288974218,17.25181273,152.03,151.98,10.67404816]
[1749288974420,17.25181273,152.03,151.98,17.25364566]
[1749288976031,17.25181273,152.03,151.97,10.67404816]
[1749288976032,10.67404816,152.02,151.97,10.67404816]
[1749288976217,10.67404816,152.01,151.97,10.67404816]
[1749288977227,10.67404816,152.01,151.97,17.25408707]
[1749288977620,10.67404816,151.98,151.93,6.58169631]
[1749288977927,10.67404816,151.97,151.92,10.67404816]
[1749288979135,10.67404816,151.96,151.92,17.2564495]
[1749288979840,10.67404816,151.96,151.92,10.67404816]
[1749288982626,10.67404816,151.96,151.92,17.25644153]
[1749288983034,10.67404816,151.96,151.92,6.58239337]
[1749288983920,10.67404816,151.95,151.91,17.25677876]
[1749288984946,10.67404816,151.96,151.91,17.25677876]
[1749288986530,6.57990573,151.98,151.94,10.67404816]
[1749288988220,8.19954141,152.0,151.94,17.25558699]
[1749288988421,18.87358957,152.0,151.95,10.67404816]
[1749288989857,17.25348041,151.99,151.95,10.67404816]
[1749288990422,6.57943225,151.99,151.95,10.67404816]
[1749288990631,17.25348041,151.99,151.95,10.67404816]
[1749288991525,18.873641,152.0,151.96,10.67404816]
[1749288992548,8.19959284,152.0,151.96,10.67404816]
[1749288993757,1.6205,152.0,151.97,10.67404816]
[1749288994248,8.19946119,152.0,151.96,10.67404816]
[1749288994439,17.25212999,152.02,151.97,10.67404816]
[1749288995737,10.67404816,152.01,151.97,10.67404816]
[1749288997128,17.25277137,152.01,151.97,10.67404816]
[1749288998434,6.57872321,152.01,151.97,10.67404816]
[1749288999655,17.25277137,152.01,151.96,10.67404816]
[1749288999958,10.67404816,152.0,151.96,10.67404816]
[1749289001227,17.25304878,152.0,151.95,10.67404816]
[1749289001431,10.67404816,151.99,151.95,10.67404816]
[1749289001632,10.67404816,151.98,151.93,36.67404816]
[1749289001938,1.5108,151.99,151.93,36.67404816]
[1749289002129,12.18484816,151.99,151.95,10.67404816]
[1749289002527,12.18484816,151.99,151.94,10.67404816]
[1749289002729,10.67404816,151.98,151.94,10.67404816]
[1749289003347,17.25392261,151.98,151.94,10.67404816]
[1749289004140,8.09033982,151.99,151.95,10.67404816]
[1749289004353,18.76438798,151.99,151.95,10.67404816]
[1749289005662,8.09033982,151.99,151.95,10.67404816]
[1749289007353,1.5108,151.99,151.96,10.67404816]
[1749289008957,17.25265079,152.01,151.97,10.67404816]
[1749289014244,17.25265079,152.01,151.96,10.67404816]
[1749289014456,22.16275729,152.01,151.96,10.67404816]
[1749289015974,22.16275729,152.01,151.96,17.25472577]
[1749289017153,22.16275729,152.01,151.97,10.67404816]
[1749289018870,22.16275729,152.01,151.96,10.67404816]
[1749289019072,4.9101065,152.0,151.96,10.67404816]
[1749289020244,17.25265079,152.01,151.96,17.2547241]
[1749289020545,4.91329539,152.0,151.96,17.2547241]
[1749289020851,4.91329539,152.0,151.97,10.67404816]
[1749289021052,4.91329539,152.01,151.97,10.67404816]
[1749289021356,4.91329539,152.0,151.97,10.67404816]
[1749289021566,4.91329539,151.99,151.97,10.67404816]
[1749289021767,4.91329539,152.01,151.97,10.67404816]
[1749289021970,4.91329539,152.0,151.97,10.67404816]
[1749289022161,4.91329539,151.99,151.97,10.67404816]
[1749289022470,4.91329539,152.01,151.97,10.67404816]
[1749289022667,4.91329539,152.0,151.97,10.67404816]
[1749289022877,4.91329539,151.99,151.97,10.67404816]
[1749289023177,4.91329539,152.0,151.97,10.67404816]
[1749289023372,4.91329539,151.99,151.97,10.67404816]
[1749289023680,4.91329539,152.0,151.97,10.67404816]
[1749289023881,4.91329539,151.99,151.97,10.67404816]
[1749289024055,4.91329539,152.0,151.97,10.67404816]
[1749289024254,4.91329539,151.99,151.97,10.67404816]
[1749289024450,4.91329539,152.0,151.97,10.67404816]
[1749289024647,4.91329539,151.99,151.97,10.67404816]
[1749289024872,4.91329539,152.0,151.97,10.67404816]
[1749289025177,4.91329539,151.99,151.97,10.67404816]
[1749289025476,4.91329539,152.0,151.97,10.67404816]
[1749289025661,4.91329539,151.99,151.98,10.67404816]
[1749289025988,11.49226273,152.0,151.97,10.67404816]
[1749289026187,10.67404816,151.98,151.94,10.28]
[1749289026480,4.91329539,151.97,151.94,20.95404816]
[1749289026872,4.91329539,151.98,151.94,20.95404816]
[1749289027174,4.91329539,151.98,151.95,10.67404816]
[1749289027360,15.58734355,151.99,151.95,10.67404816]
[1749289027559,4.92028348,151.98,151.95,10.67404816]
[1749289027759,6.57981313,151.98,151.95,10.67404816]
[1749289028577,4.92052242,151.97,151.95,10.67404816]
[1749289028767,6.57981313,151.98,151.95,10.67404816]
[1749289030668,4.9211618,151.97,151.95,10.67404816]
[1749289031061,4.92129222,151.98,151.96,10.67404816]
[1749289031270,4.92130923,151.98,151.96,10.67404816]
[1749289031952,4.92130923,151.98,151.95,10.67404816]
[1749289032279,4.92134843,151.97,151.95,10.67404816]
[1749289032483,4.92134843,151.98,151.95,10.67404816]
[1749289032663,4.92134843,151.97,151.95,10.67404816]
[1749289032863,4.92134843,151.98,151.95,10.67404816]
[1749289033071,4.92134843,151.97,151.95,10.67404816]
[1749289033263,4.92134843,151.98,151.95,10.67404816]
[1749289033462,4.92134843,151.97,151.95,10.67404816]
[1749289033666,4.92134843,151.98,151.95,10.67404816]
[1749289033861,4.92134843,151.97,151.95,10.67404816]
[1749289034079,4.92134843,151.98,151.95,10.67404816]
[1749289034280,4.92134843,151.97,151.95,10.67404816]
[1749289034478,4.92134843,151.98,151.95,10.67404816]
[1749289034679,4.92134843,151.97,151.95,10.67404816]
[1749289034982,6.57912277,152.0,151.96,10.67404816]
[1749289035178,4.92243222,151.99,151.96,10.67404816]
[1749289035378,6.57912277,152.0,151.96,10.67404816]
[1749289035580,4.92252232,151.99,151.96,10.67404816]
[1749289035781,6.57912277,152.0,151.96,10.67404816]
[1749289036016,4.92258361,151.99,151.96,10.67404816]
[1749289036287,4.92282431,151.99,151.96,10.67404816]
[1749289038290,4.92282431,151.99,151.97,10.67404816]
[1749289038858,6.57940806,151.99,151.97,10.67404816]
[1749289039065,6.57940806,151.99,151.96,10.67404816]
[1749289041484,6.57940806,151.99,151.94,10.28]
[1749289041687,4.92461636,151.98,151.94,10.28]
[1749289041895,4.92461636,151.97,151.94,20.95404816]
[1749289042107,4.92461636,151.98,151.94,20.95404816]
[1749289042404,17.25345622,151.99,151.94,20.95404816]
[1749289042689,4.92427083,151.98,151.94,20.95404816]
[1749289042897,4.92427083,151.97,151.94,20.95404816]
[1749289043073,4.92427083,151.98,151.94,20.95404816]
[1749289043268,4.92427083,151.97,151.94,20.95404816]
[1749289043473,4.92427083,151.98,151.94,20.95404816]
[1749289043802,6.58067912,151.96,151.94,20.95404816]
[1749289044000,6.58067912,151.96,151.94,10.28]
[1749289044378,6.58067912,151.96,151.94,20.95404816]
[1749289045698,11.50372241,151.98,151.94,20.95404816]